fUST/lending_fUST_20250424
["ID","MTS","AMOUNT","RATE_DAILY","PERIOD"]
[358863196,1745491840718,-1253.18,0.00019178,2]
[358863197,1745491840729,-500.0,0.00019178,2]
[358863198,1745491840739,-500.0,0.00019178,2]
[358863199,1745491840750,-500.0,0.00019178,2]
[358863200,1745491840760,-500.0,0.00019178,2]
[358863201,1745491840770,-823.57,0.00019178,2]
[358863202,1745491840779,-300.0,0.00019178,2]
[358863203,1745491840788,-230.96177315,0.00019211,2]
[358863204,1745491840799,-151.0,0.00019233,2]
[358863205,1745491840808,-198.0,0.00019288,2]
[358863206,1745491840817,-160.0,0.0001933,2]
[358863207,1745491840826,-160.0,0.0001933,2]
[358863208,1745491840835,-12576.49486522,0.0001933,2]
[358863209,1745491840846,-420.89490186,0.0001933,2]
[358863210,1745491840856,-160.0,0.0001933,2]
[358863211,1745491840865,-840.0731918,0.0001933,2]
[358863212,1745491840875,-160.0,0.0001933,2]
[358863213,1745491840884,-160.0,0.0001933,2]
[358863214,1745491840894,-230.96177315,0.0001935,2]
[358863215,1745491840903,-167.801,0.00019451,2]
[358863216,1745491840914,-500.0,0.00019452,2]
[358863217,1745491840924,-500.0,0.00019452,2]
[358863218,1745491840933,-500.0,0.00019452,2]
[358863219,1745491840943,-500.0,0.00019452,2]
[358863220,1745491840952,-500.0,0.00019452,2]
[358863221,1745491840962,-500.0,0.00019452,2]
[358863222,1745491840972,-500.0,0.00019452,2]
[358863223,1745491840981,-191.77239508,0.00019452,2]
[358863224,1745491840990,-514.32,0.00019452,2]
[358863225,1745491841000,-500.0,0.00019452,2]
[358863226,1745491841010,-500.0,0.00019452,2]
[358863227,1745491841020,-500.0,0.00019452,2]
[358863228,1745491841029,-500.0,0.00019452,2]
[358863229,1745491841040,-500.0,0.00019452,2]
[358863230,1745491841050,-500.0,0.00019452,2]
[358863231,1745491841060,-586.09,0.00019452,2]
[358863232,1745491841070,-500.0,0.00019452,2]
[358863233,1745491841080,-500.0,0.00019452,2]
[358863234,1745491841089,-906.46,0.00019452,2]
[358863235,1745491841099,-500.0,0.00019452,2]
[358863236,1745491841108,-693.56,0.00019452,2]
[358863237,1745491841119,-500.0,0.00019452,2]
[358863238,1745491841131,-500.0,0.00019452,2]
[358863239,1745491841144,-500.0,0.00019452,2]
[358863240,1745491841154,-500.0,0.00019452,2]
[358863241,1745491841163,-500.0,0.00019452,2]
[358863242,1745491841174,-500.0,0.00019452,2]
[358863243,1745491841184,-500.0,0.00019452,2]
[358863244,1745491841195,-678.23,0.00019452,2]
[358863245,1745491841204,-500.0,0.00019452,2]
[358863246,1745491841214,-500.0,0.00019452,2]
[358863247,1745491841224,-500.0,0.00019452,2]
[358863248,1745491841234,-500.0,0.00019452,2]
[358863249,1745491841245,-496.64683731,0.00019452,2]
[358863250,1745491841255,-500.0,0.00019452,2]
[358863251,1745491841264,-500.0,0.00019452,2]
[358863252,1745491841273,-500.0,0.00019452,2]
[358863253,1745491841283,-580.65,0.00019452,2]
[358863254,1745491841292,-2215.8,0.00019452,2]
[358863255,1745491841302,-1052.15,0.00019452,2]
[358863256,1745491841311,-785.59,0.00019452,2]
[358863257,1745491841320,-500.0,0.00019452,2]
[358863258,1745491841330,-591.60694239,0.00019452,2]
[358863259,1745491841339,-1122.85,0.00019452,2]
[358863260,1745491841348,-500.0,0.00019452,2]
[358863261,1745491841357,-625.22,0.00019452,2]
[358863262,1745491841366,-500.0,0.00019452,2]
[358863263,1745491841375,-706.14,0.00019452,2]
[358863264,1745491841384,-500.0,0.00019452,2]
[358863265,1745491841394,-1485.04,0.00019452,2]
[358863266,1745491841403,-500.0,0.00019452,2]
[358863267,1745491841412,-500.0,0.00019452,2]
[358863268,1745491841422,-500.88,0.00019452,2]
[358863269,1745491841431,-500.0,0.00019452,2]
[358863270,1745491841441,-500.0,0.00019452,2]
[358863271,1745491841450,-500.0,0.00019452,2]
[358863272,1745491841460,-500.0,0.00019452,2]
[358863273,1745491841469,-500.0,0.00019452,2]
[358863274,1745491841479,-643.06,0.00019452,2]
[358863275,1745491841488,-2697.47,0.00019452,2]
[358863276,1745491841501,-500.0,0.00019452,2]
[358863277,1745491841512,-500.0,0.00019452,2]
[358863278,1745491841522,-1014.64,0.00019452,2]
[358863279,1745491841531,-729.93,0.00019452,2]
[358863280,1745491841541,-1113.15,0.00019452,2]
[358863281,1745491841550,-1067.78,0.00019452,2]
[358863282,1745491841559,-500.0,0.00019452,2]
[358863283,1745491841684,-500.0,0.00019452,2]
[358863284,1745491841713,-1067.3,0.00019452,2]
[358863285,1745491841723,-753.51,0.00019452,2]
[358863286,1745491841732,-945.25,0.00019452,2]
[358863287,1745491841745,-862.96,0.00019452,2]
[358863288,1745491841756,-759.22,0.00019452,2]
[358863289,1745491841765,-624.73,0.00019452,2]
[358863290,1745491841775,-1762.8,0.00019452,2]
[358863291,1745491841783,-500.0,0.00019452,2]
[358863292,1745491841793,-500.0,0.00019452,2]
[358863293,1745491841802,-500.0,0.00019452,2]
[358863294,1745491841811,-502.24,0.00019452,2]
[358863295,1745491841820,-598.29,0.00019452,2]
[358863296,1745491841830,-500.0,0.00019452,2]
[358863297,1745491841839,-500.0,0.00019452,2]
[358863298,1745491841848,-500.0,0.00019452,2]
[358863299,1745491841857,-196.08808923,0.00019452,2]
[358863300,1745491841867,-631.62,0.00019452,2]
[358863301,1745491841876,-500.0,0.00019452,2]
[358863302,1745491841885,-500.0,0.00019452,2]
[358863303,1745491841895,-625.12,0.00019452,2]
[358863304,1745491841904,-189.22348077,0.00019452,2]
[358863305,1745491841916,-500.0,0.00019452,2]
[358863306,1745491841926,-500.0,0.00019452,2]
[358863307,1745491841935,-645.85,0.00019452,2]
[358863308,1745491841944,-545.0,0.00019452,2]
[358863309,1745491841955,-970.97,0.00019452,2]
[358863310,1745491841966,-500.0,0.00019452,2]
[358863311,1745491841976,-500.0,0.00019452,2]
[358863312,1745491841986,-555.78,0.00019452,2]
[358863313,1745491841996,-724.0,0.00019452,2]
[358863314,1745491842006,-500.0,0.00019452,2]
[358863315,1745491842015,-500.0,0.00019452,2]
[358863316,1745491842026,-500.0,0.00019452,2]
[358863317,1745491842036,-500.0,0.00019452,2]
[358863318,1745491842046,-500.0,0.00019452,2]
[358863319,1745491842055,-554.12,0.00019452,2]
[358863320,1745491842064,-578.21533969,0.00019452,2]
[358863321,1745491842074,-500.0,0.00019452,2]
[358863322,1745491842083,-500.0,0.00019452,2]
[358863323,1745491842093,-1068.12,0.00019452,2]
[358863324,1745491842102,-500.0,0.00019452,2]
[358863325,1745491842112,-500.0,0.00019452,2]
[358863326,1745491842122,-1587.79,0.00019452,2]
[358863327,1745491842131,-500.0,0.00019452,2]
[358863328,1745491842141,-558.97377412,0.00019452,2]
[358863329,1745491842151,-500.0,0.00019452,2]
[358863330,1745491842161,-501.83,0.00019452,2]
[358863331,1745491842171,-780.1,0.00019452,2]
[358863332,1745491842181,-917.32,0.00019452,2]
[358863333,1745491842190,-800.72,0.00019452,2]
[358863334,1745491842200,-511.66,0.00019452,2]
[358863335,1745491842211,-972.65,0.00019452,2]
[358863336,1745491842221,-568.98,0.00019452,2]
[358863337,1745491842230,-1039.96,0.00019452,2]
[358863338,1745491842239,-500.0,0.00019452,2]
[358863339,1745491842249,-1013.28,0.00019452,2]
[358863340,1745491842259,-500.0,0.00019452,2]
[358863341,1745491842269,-776.17,0.00019452,2]
[358863342,1745491842279,-3236.14,0.00019452,2]
[358863343,1745491842288,-500.0,0.00019452,2]
[358863344,1745491842297,-1158.07,0.00019452,2]
[358863345,1745491842306,-500.0,0.00019452,2]
[358863346,1745491842316,-500.0,0.00019452,2]
[358863348,1745491842326,-4847.66,0.00019452,2]
[358863349,1745491842336,-1109.84,0.00019452,2]
[358863350,1745491842345,-3763.9,0.00019452,2]
[358863351,1745491842355,-500.0,0.00019452,2]
[358863352,1745491842364,-500.0,0.00019452,2]
[358863353,1745491842374,-572.05,0.00019452,2]
[358863354,1745491842383,-4180.06,0.00019452,2]
[358863355,1745491842392,-570.11,0.00019452,2]
[358863356,1745491842402,-500.0,0.00019452,2]
[358863357,1745491842412,-500.0,0.00019452,2]
[358863358,1745491842423,-171.80046234,0.00019452,2]
[358863359,1745491842433,-539.69,0.00019452,2]
[358863360,1745491842442,-500.0,0.00019452,2]
[358863361,1745491842452,-588.67,0.00019452,2]
[358863363,1745491842462,-1259.03,0.00019452,2]
[358863364,1745491842472,-772.18,0.00019452,2]
[358863366,1745491842481,-500.0,0.00019452,2]
[358863367,1745491842492,-500.0,0.00019452,2]
[358863368,1745491842503,-1681.37,0.00019452,2]
[358863369,1745491842512,-500.0,0.00019452,2]
[358863370,1745491842522,-2969.17,0.00019452,2]
[358863371,1745491842531,-500.0,0.00019452,2]
[358863372,1745491842541,-605.8,0.00019452,2]
[358863374,1745491842551,-500.0,0.00019452,2]
[358863376,1745491842560,-500.0,0.00019452,2]
[358863378,1745491842570,-500.0,0.00019452,2]
[358863379,1745491842582,-500.0,0.00019452,2]
[358863380,1745491842594,-1139.37,0.00019452,2]
[358863382,1745491842603,-500.0,0.00019452,2]
[358863384,1745491842613,-500.0,0.00019452,2]
[358863385,1745491842622,-896.92,0.00019452,2]
[358863386,1745491842632,-500.0,0.00019452,2]
[358863387,1745491842641,-1301.4,0.00019452,2]
[358863388,1745491842651,-500.0,0.00019452,2]
[358863390,1745491842660,-500.0,0.00019452,2]
[358863392,1745491842670,-507.91,0.00019452,2]
[358863393,1745491842680,-542.26,0.00019452,2]
[358863394,1745491842690,-500.0,0.00019452,2]
[358863395,1745491842699,-500.0,0.00019452,2]
[358863397,1745491842708,-1039.17,0.00019452,2]
[358863399,1745491842718,-4016.96,0.00019452,2]
[358863400,1745491842728,-500.0,0.00019452,2]
[358863401,1745491842737,-3928.09,0.00019452,2]
[358863402,1745491842748,-500.0,0.00019452,2]
[358863403,1745491842757,-1059.88,0.00019452,2]
[358863405,1745491842766,-500.0,0.00019452,2]
[358863407,1745491842775,-649.42,0.00019452,2]
[358863408,1745491842785,-818.13,0.00019452,2]
[358863409,1745491842794,-500.0,0.00019452,2]
[358863410,1745491842803,-573.14606108,0.00019452,2]
[358863411,1745491842812,-1402.81,0.00019452,2]
[358863413,1745491842821,-500.0,0.00019452,2]
[358863414,1745491842831,-4745.92,0.00019452,2]
[358863415,1745491842839,-731.9,0.00019452,2]
[358863416,1745491842848,-500.0,0.00019452,2]
[358863417,1745491842857,-500.0,0.00019452,2]
[358863418,1745491842867,-4024.9,0.00019452,2]
[358863420,1745491842876,-500.0,0.00019452,2]
[358863422,1745491842886,-10985.73,0.00019452,2]
[358863424,1745491842895,-1396.82,0.00019452,2]
[358863425,1745491842905,-500.0,0.00019452,2]
[358863427,1745491842914,-837.49,0.00019452,2]
[358863429,1745491842923,-1007.42,0.00019452,2]
[358863430,1745491842933,-500.0,0.00019452,2]
[358863431,1745491842942,-4855.73,0.00019452,2]
[358863432,1745491842951,-4023.42,0.00019452,2]
[358863433,1745491842960,-500.0,0.00019452,2]
[358863434,1745491842969,-809.83,0.00019452,2]
[358863435,1745491842979,-2840.41,0.00019452,2]
[358863436,1745491842988,-500.0,0.00019452,2]
[358863437,1745491842999,-500.0,0.00019452,2]
[358863438,1745491843008,-500.0,0.00019452,2]
[358863439,1745491843017,-500.0,0.00019452,2]
[358863440,1745491843027,-926.55,0.00019452,2]
[358863441,1745491843037,-624.43,0.00019452,2]
[358863442,1745491843046,-500.0,0.00019452,2]
[358863443,1745491843055,-717.51,0.00019452,2]
[358863444,1745491843065,-4403.01,0.00019452,2]
[358863445,1745491843074,-916.67,0.00019452,2]
[358863446,1745491843084,-2833.71,0.00019452,2]
[358863447,1745491843093,-4343.44,0.00019452,2]
[358863448,1745491843103,-749.36,0.00019452,2]
[358863449,1745491843112,-1472.63,0.00019452,2]
[358863450,1745491843122,-910.83,0.00019452,2]
[358863451,1745491843131,-500.0,0.00019452,2]
[358863452,1745491843141,-500.0,0.00019452,2]
[358863453,1745491843151,-709.98,0.00019452,2]
[358863454,1745491843160,-517.97,0.00019452,2]
[358863455,1745491843169,-1686.25,0.00019452,2]
[358863456,1745491843179,-500.0,0.00019452,2]
[358863457,1745491843190,-532.77,0.00019452,2]
[358863458,1745491843199,-500.0,0.00019452,2]
[358863459,1745491843209,-1253.18,0.00019452,2]
[358863460,1745491843218,-312.13822008,0.00019452,2]
[358863461,1745491843228,-500.0,0.00019452,2]
[358863462,1745491843237,-823.57,0.00019452,2]
[358863463,1745491843247,-230.96177315,0.00019488,2]
[358863464,1745491843256,-470.5154792,0.00019589,2]
[358863465,1745491843267,-361.5028103,0.00019589,2]
[358863466,1745491843278,-361.5028103,0.00019589,2]
[358863467,1745491843287,-230.96177315,0.00019626,2]
[358863468,1745491843297,-500.0,0.00019664,2]
[358863469,1745491843308,-500.0,0.00019726,2]
[358863470,1745491843317,-500.0,0.00019726,2]
[358863471,1745491843327,-500.0,0.00019726,2]
[358863472,1745491843336,-500.0,0.00019726,2]
[358863473,1745491843345,-500.0,0.00019726,2]
[358863474,1745491843355,-500.0,0.00019726,2]
[358863475,1745491843364,-514.32,0.00019726,2]
[358863476,1745491843374,-500.0,0.00019726,2]
[358863477,1745491843384,-500.0,0.00019726,2]
[358863478,1745491843394,-500.0,0.00019726,2]
[358863479,1745491843404,-500.0,0.00019726,2]
[358863480,1745491843413,-500.0,0.00019726,2]
[358863481,1745491843423,-500.0,0.00019726,2]
[358863482,1745491843432,-586.09,0.00019726,2]
[358863483,1745491843442,-500.0,0.00019726,2]
[358863484,1745491843451,-500.0,0.00019726,2]
[358863485,1745491843460,-906.46,0.00019726,2]
[358863486,1745491843469,-500.0,0.00019726,2]
[358863487,1745491843479,-693.56,0.00019726,2]
[358863488,1745491843488,-500.0,0.00019726,2]
[358863489,1745491843500,-500.0,0.00019726,2]
[358863490,1745491843510,-500.0,0.00019726,2]
[358863491,1745491843520,-500.0,0.00019726,2]
[358863492,1745491843529,-500.0,0.00019726,2]
[358863493,1745491843539,-500.0,0.00019726,2]
[358863494,1745491843548,-500.0,0.00019726,2]
[358863495,1745491843558,-678.23,0.00019726,2]
[358863496,1745491843567,-594.6167353,0.00019726,2]
[358863497,1745491843577,-500.0,0.00019726,2]
[358863498,1745491843587,-500.0,0.00019726,2]
[358863499,1745491843598,-500.0,0.00019726,2]
[358863500,1745491843608,-500.0,0.00019726,2]
[358863501,1745491843617,-500.0,0.00019726,2]
[358863502,1745491843626,-500.0,0.00019726,2]
[358863503,1745491843636,-2215.8,0.00019726,2]
[358863504,1745491843646,-580.65,0.00019726,2]
[358863505,1745491843656,-1052.15,0.00019726,2]
[358863506,1745491843666,-785.59,0.00019726,2]
[358863507,1745491843675,-500.0,0.00019726,2]
[358863508,1745491843684,-1122.85,0.00019726,2]
[358863509,1745491843694,-500.0,0.00019726,2]
[358863510,1745491843703,-625.22,0.00019726,2]
[358863511,1745491843713,-500.0,0.00019726,2]
[358863512,1745491843722,-706.14,0.00019726,2]
[358863513,1745491843731,-500.0,0.00019726,2]
[358863514,1745491843741,-1485.04,0.00019726,2]
[358863515,1745491843752,-500.0,0.00019726,2]
[358863516,1745491843761,-500.0,0.00019726,2]
[358863517,1745491843771,-500.88,0.00019726,2]
[358863518,1745491843781,-500.0,0.00019726,2]
[358863519,1745491843790,-500.0,0.00019726,2]
[358863520,1745491843799,-500.0,0.00019726,2]
[358863521,1745491843809,-500.0,0.00019726,2]
[358863522,1745491843819,-500.0,0.00019726,2]
[358863523,1745491843828,-643.06,0.00019726,2]
[358863524,1745491843839,-2697.47,0.00019726,2]
[358863525,1745491843849,-500.0,0.00019726,2]
[358863526,1745491843859,-500.0,0.00019726,2]
[358863527,1745491843868,-1014.64,0.00019726,2]
[358863528,1745491843878,-729.93,0.00019726,2]
[358863529,1745491843887,-1113.15,0.00019726,2]
[358863530,1745491843897,-1067.78,0.00019726,2]
[358863531,1745491843906,-500.0,0.00019726,2]
[358863532,1745491843917,-500.0,0.00019726,2]
[358863533,1745491843928,-1067.3,0.00019726,2]
[358863534,1745491843937,-753.51,0.00019726,2]
[358863535,1745491843947,-945.25,0.00019726,2]
[358863536,1745491843956,-862.96,0.00019726,2]
[358863537,1745491843965,-759.22,0.00019726,2]
[358863538,1745491843975,-624.73,0.00019726,2]
[358863539,1745491843985,-1762.8,0.00019726,2]
[358863540,1745491843995,-500.0,0.00019726,2]
[358863541,1745491844005,-500.0,0.00019726,2]
[358863542,1745491844014,-500.0,0.00019726,2]
[358863543,1745491844025,-502.24,0.00019726,2]
[358863544,1745491844034,-598.29,0.00019726,2]
[358863545,1745491844044,-500.0,0.00019726,2]
[358863546,1745491844054,-500.0,0.00019726,2]
[358863547,1745491844063,-500.0,0.00019726,2]
[358863548,1745491844072,-631.62,0.00019726,2]
[358863549,1745491844083,-500.0,0.00019726,2]
[358863550,1745491844092,-500.0,0.00019726,2]
[358863551,1745491844102,-625.12,0.00019726,2]
[358863552,1745491844112,-500.0,0.00019726,2]
[358863553,1745491844121,-500.0,0.00019726,2]
[358863554,1745491844131,-645.85,0.00019726,2]
[358863555,1745491844140,-545.0,0.00019726,2]
[358863556,1745491844149,-970.97,0.00019726,2]
[358863557,1745491844158,-500.0,0.00019726,2]
[358863558,1745491844167,-500.0,0.00019726,2]
[358863559,1745491844176,-555.78,0.00019726,2]
[358863560,1745491844186,-724.0,0.00019726,2]
[358863561,1745491844195,-630.04787997,0.00019726,2]
[358863562,1745491844204,-500.0,0.00019726,2]
[358863563,1745491844214,-500.0,0.00019726,2]
[358863564,1745491844223,-500.0,0.00019726,2]
[358863565,1745491844233,-500.0,0.00019726,2]
[358863566,1745491844243,-554.12,0.00019726,2]
[358863567,1745491844252,-500.0,0.00019726,2]
[358863568,1745491844261,-1068.12,0.00019726,2]
[358863569,1745491844271,-500.0,0.00019726,2]
[358863570,1745491844280,-500.0,0.00019726,2]
[358863571,1745491844290,-1587.79,0.00019726,2]
[358863572,1745491844300,-500.0,0.00019726,2]
[358863573,1745491844310,-500.0,0.00019726,2]
[358863574,1745491844319,-501.83,0.00019726,2]
[358863575,1745491844328,-780.1,0.00019726,2]
[358863576,1745491844338,-917.32,0.00019726,2]
[358863577,1745491844349,-800.72,0.00019726,2]
[358863578,1745491844358,-511.66,0.00019726,2]
[358863579,1745491844367,-972.65,0.00019726,2]
[358863580,1745491844375,-1039.96,0.00019726,2]
[358863581,1745491844385,-568.98,0.00019726,2]
[358863582,1745491844394,-500.0,0.00019726,2]
[358863583,1745491844404,-1013.28,0.00019726,2]
[358863584,1745491844414,-500.0,0.00019726,2]
[358863585,1745491844423,-776.17,0.00019726,2]
[358863586,1745491844432,-3236.14,0.00019726,2]
[358863587,1745491844443,-490.20425187,0.00019726,2]
[358863588,1745491844452,-1158.07,0.00019726,2]
[358863589,1745491844461,-500.0,0.00019726,2]
[358863590,1745491844596,-500.0,0.00019726,2]
[358863591,1745491844606,-4847.66,0.00019726,2]
[358863592,1745491844615,-1109.84,0.00019726,2]
[358863593,1745491844625,-3763.9,0.00019726,2]
[358863594,1745491844635,-500.0,0.00019726,2]
[358863595,1745491844646,-500.0,0.00019726,2]
[358863596,1745491844655,-572.05,0.00019726,2]
[358863597,1745491844665,-4180.06,0.00019726,2]
[358863598,1745491844674,-570.11,0.00019726,2]
[358863599,1745491844683,-500.0,0.00019726,2]
[358863600,1745491844692,-500.0,0.00019726,2]
[358863601,1745491844702,-539.69,0.00019726,2]
[358863602,1745491844713,-500.0,0.00019726,2]
[358863603,1745491844722,-588.67,0.00019726,2]
[358863604,1745491844731,-1259.03,0.00019726,2]
[358863605,1745491844741,-772.18,0.00019726,2]
[358863606,1745491844752,-500.0,0.00019726,2]
[358863607,1745491844762,-500.0,0.00019726,2]
[358863608,1745491844771,-1681.37,0.00019726,2]
[358863609,1745491844780,-500.0,0.00019726,2]
[358863610,1745491844790,-2969.17,0.00019726,2]
[358863611,1745491844800,-500.0,0.00019726,2]
[358863612,1745491844811,-605.8,0.00019726,2]
[358863613,1745491844820,-500.0,0.00019726,2]
[358863614,1745491844829,-500.0,0.00019726,2]
[358863615,1745491844838,-500.0,0.00019726,2]
[358863616,1745491844848,-1139.37,0.00019726,2]
[358863617,1745491844858,-500.0,0.00019726,2]
[358863618,1745491844868,-478.95742326,0.00019726,2]
[358863651,1745491846142,-176.51916053,0.00018978,2]
[358863652,1745491846154,-2154.75420999,0.00018978,2]
[358863670,1745493032147,-160.0,0.00017911,2]
[358863671,1745493032157,-214.879776,0.00017942,2]
[358863672,1745493032166,-159.97773,0.00018594,2]
[358863673,1745493032176,-500.0,0.00018693,2]
[358863674,1745493032185,-316.45056469,0.00018693,2]
[358863675,1745493032195,-515.00025203,0.00018693,2]
[358863676,1745493032204,-300.0,0.00018694,2]
[358863677,1745493032214,-1200.0,0.00018694,2]
[358863678,1745493032223,-285.51128451,0.00018696,2]
[358863679,1745493032233,-500.0,0.00018696,2]
[358863680,1745493032242,-330.91996879,0.00018696,2]
[358863681,1745493032252,-305.87957297,0.000187,2]
[358863682,1745493032262,-318.03805418,0.000188,2]
[358863683,1745493032271,-157.2502195,0.000189,2]
[358863684,1745493032280,-184.76941852,0.000189,2]
[358863685,1745493032290,-151.0,0.00018967,2]
[358863686,1745493032302,-500.0,0.00018973,2]
[358863687,1745493032313,-500.0,0.00018973,2]
[358863688,1745493032322,-500.0,0.00018973,2]
[358863689,1745493032332,-500.0,0.00018973,2]
[358863690,1745493032341,-500.0,0.00018973,2]
[358863691,1745493032350,-500.0,0.00018973,2]
[358863692,1745493032360,-500.0,0.00018973,2]
[358863693,1745493032369,-500.0,0.00018973,2]
[358863694,1745493032561,-500.0,0.00018973,2]
[358863695,1745493032574,-500.0,0.00018973,2]
[358863696,1745493032584,-500.0,0.00018973,2]
[358863697,1745493032593,-25033.67266067,0.00018978,2]
[358863698,1745493032629,-500.0,0.00018693,2]
[358863699,1745493032638,-299987.44760488,0.00018978,2]
[358863700,1745493032651,-11287.2891099,0.00018978,2]
[358863734,1745493038004,-461.90134953,0.00017838,2]
[358863736,1745493038015,-942.78541087,0.00017838,2]
[358863738,1745493038025,-500.0,0.00018693,2]
[358863740,1745493038033,-500.0,0.00018693,2]
[358863742,1745493038043,-500.0,0.00018693,2]
[358863743,1745493038052,-500.0,0.00018693,2]
[358863744,1745493038062,-31360.31725403,0.00018978,2]
[358863745,1745493038072,-1200.0,0.00019,2]
[358863746,1745493038082,-313.2348916,0.00019,2]
[358863747,1745493038093,-184.76941852,0.00019013,2]
[358863748,1745493038102,-361.5028103,0.00019041,2]
[358863749,1745493038111,-184.76941852,0.00019126,2]
[358863750,1745493038121,-500.0,0.00019173,2]
[358863751,1745493038130,-500.0,0.00019173,2]
[358863752,1745493038139,-500.0,0.00019173,2]
[358863754,1745493038148,-500.0,0.00019173,2]
[358863755,1745493038157,-500.0,0.00019173,2]
[358863757,1745493038167,-500.0,0.00019173,2]
[358863758,1745493038176,-500.0,0.00019173,2]
[358863759,1745493038186,-500.0,0.00019173,2]
[358863760,1745493038195,-500.0,0.00019173,2]
[358863761,1745493038205,-500.0,0.00019173,2]
[358863762,1745493038215,-500.0,0.00019173,2]
[358863763,1745493038225,-500.0,0.00019173,2]
[358863764,1745493038235,-500.0,0.00019173,2]
[358863765,1745493038244,-500.0,0.00019173,2]
[358863766,1745493038253,-500.0,0.00019173,2]
[358863767,1745493038262,-500.0,0.00019173,2]
[358863768,1745493038271,-500.0,0.00019173,2]
[358863769,1745493038280,-500.0,0.00019173,2]
[358863770,1745493038290,-500.0,0.00019173,2]
[358863771,1745493038299,-500.0,0.00019173,2]
[358863772,1745493038308,-500.0,0.00019173,2]
[358863773,1745493038319,-500.0,0.00019173,2]
[358863774,1745493038328,-500.0,0.00019178,2]
[358863775,1745493038338,-500.0,0.00019178,2]
[358863776,1745493038347,-500.0,0.00019178,2]
[358863777,1745493038356,-500.0,0.00019178,2]
[358863778,1745493038365,-500.0,0.00019178,2]
[358863779,1745493038376,-500.0,0.00019178,2]
[358863780,1745493038385,-500.0,0.00019178,2]
[358863781,1745493038395,-500.0,0.00019178,2]
[358863782,1745493038405,-500.0,0.00019178,2]
[358863783,1745493038414,-500.0,0.00019178,2]
[358863784,1745493038424,-500.0,0.00019178,2]
[358863785,1745493038434,-500.0,0.00019178,2]
[358863786,1745493038444,-500.0,0.00019178,2]
[358863787,1745493038453,-509.09578497,0.00019178,2]
[358863788,1745493038463,-482.82358185,0.00019178,2]
[358863789,1745493038472,-500.0,0.00019178,2]
[358863790,1745493038481,-500.0,0.00019178,2]
[358863791,1745493038491,-500.0,0.00019178,2]
[358863792,1745493038500,-1173.5,0.00019178,2]
[358863793,1745493038509,-501.02104774,0.00019178,2]
[358863794,1745493038519,-500.0,0.00019178,2]
[358863795,1745493038528,-562.95,0.00019178,2]
[358863796,1745493038537,-500.0,0.00019178,2]
[358863797,1745493038546,-500.0,0.00019178,2]
[358863798,1745493038555,-500.0,0.00019178,2]
[358863799,1745493038565,-400.73634668,0.00019178,2]
[358863800,1745493038574,-500.0,0.00019178,2]
[358863801,1745493038583,-515.6,0.00019178,2]
[358863802,1745493038592,-1242.35,0.00019178,2]
[358863803,1745493038601,-500.0,0.00019178,2]